bitfinex-derivatives/quotes_SOLF0:USTF0_20250311
["timestamp","ask_amount","ask_price","bid_price","bid_amount"]
[1741691707464,4.78038077,123.92,123.84,31.18]
[1741691707760,8.0723,123.89,123.84,39.2551]
[1741691707959,15.0462192,123.93,123.84,31.18]
[1741691708153,4.78154691,123.92,123.84,31.18]
[1741691708356,15.0462192,123.93,123.85,18.6517192]
[1741691708357,8.072,123.9,123.85,18.6517192]
[1741691708557,0.05214355,123.89,123.87,10.63694901]
[1741691708758,8.0697,123.93,123.88,39.2125]
[1741691708955,0.05522972,123.89,123.88,39.2125]
[1741691709163,8.0697,123.93,123.89,0.05943193]
[1741691709357,0.05989763,123.9,123.89,0.05943193]
[1741691709557,0.05989763,123.9,123.89,8.13163193]
[1741691709957,0.05989763,123.9,123.89,0.05943193]
[1741691711664,0.05989763,123.9,123.89,62.05943193]
[1741691714962,0.05989763,123.9,123.89,72.63635113]
[1741691715266,0.05989763,123.9,123.89,80.70865113]
[1741691715767,194.0,123.98,123.89,72.63635113]
[1741691715967,194.0,123.98,123.91,10.5769192]
[1741691716259,194.0,123.98,123.92,31.02]
[1741691716869,8.0692,123.94,123.92,31.02]
[1741691717069,0.05692705,123.96,123.94,0.05280541]
[1741691717367,8.0684,123.95,123.94,0.05280541]
[1741691721963,8.12492705,123.96,123.94,0.05280541]
[1741691722371,8.12492705,123.96,123.94,62.05280541]
[1741691722572,8.0684,123.95,123.94,62.05280541]
[1741691722770,8.0684,123.95,123.94,0.05280541]
[1741691723873,8.12492705,123.96,123.94,0.05280541]
[1741691724178,0.05692705,123.96,123.94,0.05280541]
[1741691725571,8.0684,123.95,123.94,0.05280541]
[1741691725874,0.05692705,123.96,123.94,0.05280541]
[1741691726173,0.05692705,123.96,123.95,30.9]
[1741691727072,8.12462705,123.96,123.95,30.9]
[1741691727274,0.05692705,123.96,123.9,30.92]
[1741691727970,10.5769192,123.95,123.87,10.5769192]
[1741691728165,4.6989,123.94,123.88,30.96]
[1741691728365,8.0714,123.91,123.88,39.0329]
[1741691728563,8.0714,123.91,123.9,0.05576801]
[1741691728867,0.05819704,123.92,123.9,0.05576801]
[1741691729269,0.05819704,123.92,123.91,30.98]
[1741691729764,0.05819704,123.92,123.91,39.051]
[1741691730072,0.05819704,123.92,123.91,30.98]
[1741691730372,0.05819704,123.92,123.91,92.98]
[1741691731669,0.05819704,123.92,123.91,101.051]
[1741691731875,0.05819704,123.92,123.91,92.98]
[1741691732768,0.05819704,123.92,123.91,101.051]
[1741691732972,0.05819704,123.92,123.91,92.98]
[1741691734475,0.05819704,123.92,123.91,101.051]
[1741691735279,0.05819704,123.92,123.91,111.6279192]
[1741691736076,0.05819704,123.92,123.91,103.5569192]
[1741691736674,0.05819704,123.92,123.91,101.051]
[1741691739181,0.05819704,123.92,123.91,92.98]
[1741691739781,0.05819704,123.92,123.91,101.051]
[1741691740982,0.05819704,123.92,123.91,92.98]
[1741691741179,0.05819704,123.92,123.91,30.98]
[1741691741383,0.05819704,123.92,123.9,0.05576801]
[1741691741883,8.071,123.91,123.9,0.05576801]
[1741691742680,8.12879704,123.92,123.9,0.05576801]
[1741691742882,0.05819704,123.92,123.9,0.05576801]
[1741691743983,8.12889704,123.92,123.9,0.05576801]
[1741691745083,0.05819704,123.92,123.9,0.05576801]
[1741691745279,0.05819704,123.92,123.9,8.12736801]
[1741691745481,0.05819704,123.92,123.91,30.76]
[1741691745683,0.05819704,123.92,123.91,38.831]
[1741691745878,0.05819704,123.92,123.91,30.76]
[1741691747475,8.12849704,123.92,123.91,30.76]
[1741691747986,0.05819704,123.92,123.91,30.76]
[1741691748179,8.12849704,123.92,123.91,30.76]
[1741691748686,0.05819704,123.92,123.91,30.76]
[1741691749187,8.12849704,123.92,123.91,30.76]
[1741691750083,0.05819704,123.92,123.91,30.76]
[1741691751283,4.87853634,123.92,123.9,0.05576801]
[1741691751479,0.05819704,123.92,123.9,0.05576801]
[1741691751975,8.12879704,123.92,123.9,0.05576801]
[1741691752380,0.05819704,123.92,123.9,0.05576801]
[1741691753183,4.82492784,123.91,123.9,0.05576801]
[1741691753584,12.89592784,123.91,123.9,0.05576801]
[1741691755482,4.82660959,123.91,123.9,0.05576801]
[1741691756181,8.12879704,123.92,123.9,0.05576801]
[1741691756486,0.05819704,123.92,123.9,0.05576801]
[1741691756886,8.12879704,123.92,123.9,0.05576801]
[1741691757287,0.05819704,123.92,123.9,0.05576801]
[1741691757887,8.12849704,123.92,123.9,0.05576801]
[1741691758388,0.05819704,123.92,123.9,8.12736801]
[1741691759686,0.05819704,123.92,123.91,8.071]
[1741691759983,4.88351776,123.92,123.9,0.05576801]
[1741691760183,4.88351776,123.92,123.84,18.62454246]
[1741691760184,8.073,123.88,123.84,18.62454246]
[1741691760388,6.6941,123.91,123.85,30.76]
[1741691760590,4.82274467,123.9,123.85,30.76]
[1741691760785,4.82274467,123.89,123.85,30.76]
[1741691760993,4.82274467,123.88,123.85,30.76]
[1741691761188,0.05939646,123.88,123.86,0.05237384]
[1741691761791,8.0739,123.87,123.86,0.05237384]
[1741691761989,8.0739,123.87,123.86,30.77237384]
[1741691762787,12.89167966,123.87,123.86,0.05237384]
[1741691763395,12.8892775,123.87,123.86,0.05237384]
[1741691765393,12.88528434,123.87,123.86,0.05237384]
[1741691766097,8.0739,123.87,123.86,0.05237384]
[1741691768690,8.13259646,123.88,123.86,0.05237384]
[1741691769293,0.05939646,123.88,123.87,30.62]
[1741691769495,0.00362845,123.88,123.87,37.10796443]
[1741691769997,0.00362845,123.88,123.87,45.18156443]
[1741691770899,266.22,123.94,123.87,37.10796443]
[1741691771098,4.80902128,123.93,123.9,6.48796443]
[1741691771302,6.48796443,123.95,123.91,30.62]
[1741691771488,4.80978376,123.94,123.91,30.62]
[1741691771694,8.0703,123.92,123.91,30.62]
[1741691772198,12.88039757,123.92,123.91,30.62]
[1741691772996,8.071,123.91,123.9,0.05467737]
[1741691773199,12.88109757,123.91,123.9,0.05467737]
[1741691774197,50.76602643,123.91,123.74,89.42779747]
[1741691774410,6.48796443,123.83,123.78,6.48796443]
[1741691774596,11.29160968,123.82,123.76,6.48796443]
[1741691774797,8.0788,123.79,123.77,30.58]
[1741691775193,6.48796443,123.82,123.77,38.6599]
[1741691775402,6.48796443,123.82,123.77,38.71448861]
[1741691775403,0.05276573,123.79,123.77,38.71448861]
[1741691775704,0.05276573,123.79,123.78,6.48796443]
[1741691775895,0.05276573,123.79,123.78,14.56736443]
[1741691776403,200.49064027,123.85,123.79,8.0783]
[1741691776598,6.49064027,123.85,123.8,37.07064027]
[1741691777105,12.7136,123.87,123.8,38.658]
[1741691777301,4.78873171,123.86,123.8,38.658]
[1741691777498,12.7136,123.87,123.82,0.06193348]
[1741691777499,0.0605857,123.85,123.82,0.06193348]
[1741691777702,0.0605857,123.85,123.83,30.54]
[1741691779498,0.0605857,123.85,123.83,41.10244733]
[1741691779703,15.81139177,123.91,123.83,41.10244733]
[1741691780001,15.81139177,123.91,123.85,18.63704733]
[1741691780205,15.81139177,123.91,123.86,30.58]
[1741691780598,11.17159177,123.91,123.86,30.58]
[1741691781005,0.05830009,123.9,123.87,0.05203418]
[1741691782597,0.05830009,123.9,123.89,8.0723]
[1741691782801,0.05830009,123.9,123.89,38.6323]
[1741691784298,0.05830009,123.9,123.89,30.56]
[1741691785503,0.05830009,123.9,123.89,38.6323]
[1741691786109,0.05830009,123.9,123.89,30.56]
[1741691786802,0.05830009,123.9,123.89,38.6323]
[1741691787605,276.90244733,123.98,123.89,41.12244733]
[1741691788003,8.0681,123.96,123.89,41.12244733]
[1741691788310,276.90244733,123.98,123.92,8.07]
[1741691788509,8.0682,123.96,123.93,30.66]
[1741691789010,0.05188874,123.96,123.93,30.71975118]
[1741691789409,10.61433607,123.96,123.93,30.71975118]
[1741691789605,0.05188874,123.96,123.93,30.71975118]
[1741691790111,8.11958874,123.96,123.93,38.78895118]
[1741691790306,0.05188874,123.96,123.93,38.78895118]
[1741691791005,0.05188874,123.96,123.93,30.71975118]
[1741691791402,8.0689,123.95,123.93,30.71975118]
[1741691791706,0.05188874,123.96,123.93,30.71975118]
[1741691792012,8.0689,123.95,123.93,30.71975118]
[1741691792309,0.05188874,123.96,123.93,30.71975118]
[1741691792617,8.0689,123.95,123.93,30.71975118]
[1741691793011,0.05188874,123.96,123.93,30.71975118]
[1741691793411,8.11968874,123.96,123.93,38.78905118]
[1741691794213,0.05188874,123.96,123.94,8.069]
[1741691794414,0.05188874,123.96,123.93,30.71975118]
[1741691795119,0.05188874,123.96,123.93,38.78905118]
[1741691795716,8.11968874,123.96,123.93,38.78905118]
[1741691796208,8.11988874,123.96,123.93,30.71975118]
[1741691796415,0.05188874,123.96,123.93,30.71975118]
[1741691796813,0.05188874,123.96,123.93,38.78905118]
[1741691797315,0.05188874,123.96,123.94,8.0689]
[1741691797709,0.05188874,123.96,123.93,30.71975118]
[1741691797910,8.11978874,123.96,123.93,38.78905118]
[1741691798116,8.11978874,123.96,123.93,30.71975118]
[1741691798511,0.05188874,123.96,123.93,30.71975118]
[1741691799221,8.0684,123.95,123.93,30.71975118]
[1741691799919,8.069,123.94,123.93,0.05975118]
[1741691800111,0.05188874,123.96,123.93,0.05975118]
[1741691800317,0.05188874,123.96,123.95,8.0684]
[1741691800517,0.05188874,123.96,123.95,39.2284]
[1741691800810,0.05188874,123.96,123.95,31.16]
[1741691801417,0.05188874,123.96,123.95,39.2284]
[1741691803311,0.05188874,123.96,123.95,101.2284]
[1741691806014,6.6845,124.04,123.98,8.0663]
[1741691806221,6.6845,124.04,123.99,31.2]
[1741691806419,14.7475,124.04,123.99,31.2]
[1741691807120,8.0633,124.03,123.99,31.2]
[1741691807319,8.12071338,124.03,124.0,0.05862202]
[1741691808224,8.0638,124.02,124.0,0.05862202]
[1741691808418,0.05741338,124.03,124.0,0.05862202]
[1741691809224,0.05741338,124.03,124.0,62.05862202]
[1741691809526,8.0643,124.02,124.0,62.05862202]
[1741691809823,8.0643,124.02,124.0,0.05862202]
[1741691811117,8.0645,124.01,124.0,0.05862202]
[1741691811524,0.05741338,124.03,124.0,0.05862202]
[1741691812223,8.0645,124.01,124.0,0.05862202]
[1741691821331,8.0677,123.96,123.95,6.47327006]
[1741691821629,6.47327006,124.02,123.95,6.47327006]
[1741691821830,6.47327006,124.02,123.96,30.88]
[1741691822529,0.05567391,124.0,123.98,0.05500206]
[1741691823127,8.0658,123.99,123.98,0.05500206]
[1741691823327,8.0658,123.99,123.98,2.06e-06]
[1741691823749,19.80505513,123.99,123.98,2.06e-06]
[1741691824125,8.0707,123.92,123.9,37.37327006]
[1741691824333,8.0707,123.92,123.9,99.37327006]
[1741691824630,6.47327006,123.95,123.9,37.37327006]
[1741691824929,6.47327006,123.93,123.88,6.47327006]
[1741691825135,6.53160515,123.93,123.9,0.05842262]
[1741691827336,0.05833509,123.93,123.9,8.13002262]
[1741691827538,0.05833509,123.93,123.9,0.05842262]
[1741691827737,0.05833509,123.93,123.9,6.53169268]
[1741691828040,0.05833509,123.93,123.9,14.60289268]
[1741691828235,8.12833509,123.93,123.9,14.60988402]
[1741691828632,8.0707,123.92,123.9,6.53868402]
[1741691828832,0.05833509,123.93,123.9,0.05842262]
[1741691829232,8.0703,123.92,123.9,0.05842262]
[1741691829435,0.05833509,123.93,123.9,0.05842262]
[1741691829837,0.05833509,123.93,123.91,8.0709]
[1741691830036,0.05833509,123.93,123.9,0.05842262]
[1741691830338,8.12853509,123.93,123.9,8.12982262]
[1741691830539,0.05833509,123.93,123.9,8.12982262]
[1741691830734,0.05833509,123.93,123.9,0.05842262]
[1741691831145,8.0703,123.92,123.9,0.05842262]
[1741691831344,0.05833509,123.93,123.9,0.05842262]
[1741691832839,8.071,123.91,123.9,0.05842262]
[1741691833539,8.071,123.91,123.9,2.262e-05]
[1741691834641,7.19592574,123.91,123.82,32.420032]
[1741691834839,4.77592574,123.9,123.83,10.54868538]
[1741691835137,235.38868538,123.92,123.85,10.54868538]
[1741691835343,194.0,123.92,123.88,8.0725]
[1741691835641,8.0716,123.91,123.86,31.0]
[1741691835841,0.05514255,123.91,123.89,0.05448884]
[1741691836137,0.05514255,123.91,123.89,31.07448884]
[1741691836334,0.05514255,123.91,123.89,39.14618884]
[1741691836531,0.05514255,123.91,123.9,62.0]
[1741691836935,0.05514255,123.91,123.9,70.0716]
[1741691837335,0.05514255,123.91,123.9,62.0]
[1741691838436,8.12614255,123.91,123.9,62.0]
[1741691838637,0.05514255,123.91,123.89,31.07448884]
[1741691839641,0.05514255,123.91,123.9,8.0716]
[1741691840344,0.05514255,123.91,123.89,39.14658884]
[1741691840541,0.05514255,123.91,123.89,31.07448884]
[1741691841043,0.05514255,123.91,123.9,8.0716]
[1741691841244,0.05514255,123.91,123.89,31.07448884]
[1741691841639,0.05514255,123.91,123.9,62.0]
[1741691842739,0.05514255,123.91,123.89,31.07448884]
[1741691843637,8.0716,123.9,123.89,31.07448884]
[1741691843835,8.0716,123.9,123.89,0.05448884]
[1741691844241,8.0716,123.9,123.87,39.0132]
[1741691844242,8.0743,123.86,123.82,139.60275135]
[1741691844443,12.80758538,123.9,123.84,30.94]
[1741691845447,8.074,123.87,123.86,0.05876314]
[1741691845739,0.05801053,123.88,123.86,0.05876314]
[1741691845944,8.13121053,123.88,123.86,0.05876314]
[1741691846145,0.05801053,123.88,123.87,30.96]
[1741691846343,0.05801053,123.88,123.87,39.0336]
[1741691846946,0.05801053,123.88,123.87,49.58228538]
[1741691847145,4.76167802,123.95,123.9,8.0714]
[1741691847345,41.52868538,123.96,123.9,30.98]
[1741691847544,10.54868538,123.94,123.9,30.98]
[1741691847744,10.54868538,123.94,123.88,31.0]
[1741691847944,8.0719,123.9,123.88,31.0]
[1741691848141,8.12430665,123.9,123.88,31.0]
[1741691848344,8.12430665,123.9,123.88,31.05891511]
[1741691849145,8.12430665,123.9,123.89,62.0]
[1741691850042,8.0723,123.89,123.88,0.05891511]
[1741691851946,8.12430665,123.9,123.88,0.05891511]
[1741691853444,8.0723,123.89,123.88,0.05891511]
[1741691853842,0.05240665,123.9,123.88,0.05891511]
[1741691854752,8.12410665,123.9,123.88,0.05891511]
[1741691855353,0.05240665,123.9,123.88,8.13181511]
[1741691856046,0.05240665,123.9,123.88,70.13181511]
[1741691856240,8.12410665,123.9,123.88,62.05891511]
[1741691856444,0.05240665,123.9,123.88,62.05891511]
[1741691856848,0.05240665,123.9,123.88,70.13141511]
[1741691858154,0.05240665,123.9,123.88,62.05891511]
[1741691858347,0.05240665,123.9,123.89,8.0723]
[1741691859954,0.05240665,123.9,123.88,0.05891511]
[1741691860342,0.05240665,123.9,123.89,30.86]
[1741691860548,0.05240665,123.9,123.89,38.9323]
[1741691861857,0.05240665,123.9,123.89,45.4131419]
[1741691862243,0.05240665,123.9,123.89,45.4135503]
[1741691862644,0.05240665,123.9,123.89,37.3412503]
[1741691862849,0.05240665,123.9,123.89,30.86]
[1741691863246,0.05240665,123.9,123.88,0.05891511]
[1741691863559,8.0723,123.89,123.88,0.05891511]
[1741691863956,8.0723,123.89,123.88,1.511e-05]
[1741691864253,12.85324889,123.89,123.88,1.511e-05]
[1741691864454,17.28564889,123.89,123.88,1.511e-05]
[1741691867045,17.29293821,123.89,123.88,1.511e-05]
[1741691867958,4.78823821,123.89,123.88,1.511e-05]
[1741691868154,4.79816551,123.89,123.88,1.511e-05]
[1741691868956,4.79799527,123.89,123.88,1.511e-05]
[1741691869158,12.87029527,123.89,123.88,1.511e-05]
[1741691869760,8.0723,123.89,123.88,1.511e-05]
[1741691874058,8.12440665,123.9,123.88,1.511e-05]
[1741691874258,0.05240665,123.9,123.88,1.511e-05]
[1741691874858,0.05240665,123.9,123.89,8.0723]
[1741691877864,0.05240665,123.9,123.88,1.511e-05]
[1741691878061,0.05240665,123.9,123.88,8.07261511]
[1741691878359,0.05240665,123.9,123.88,1.511e-05]
[1741691879663,0.05240665,123.9,123.89,8.0723]
[1741691880562,8.0689,123.95,123.89,10.55242586]
[1741691880763,4.79425429,123.94,123.9,30.74]
[1741691880964,4.79425429,123.93,123.9,30.74]
[1741691881162,8.0689,123.95,123.9,30.74]
[1741691881364,4.79384836,123.94,123.9,30.74]
[1741691881561,8.0681,123.96,123.91,0.06104607]
[1741691881766,10.55242586,123.98,123.92,8.0703]
[1741691881767,0.05761307,123.93,123.92,8.0703]
[1741691882067,0.05104178,123.95,123.92,8.0703]
[1741691882366,0.05104178,123.95,123.93,38.7891]
[1741691882566,0.05104178,123.95,123.93,30.72]
[1741691882866,0.05104178,123.95,123.94,8.069]
[1741691884868,0.05104178,123.95,123.93,41.27242586]
[1741691885469,0.05104178,123.95,123.94,8.069]
[1741691887066,21.72401763,124.02,123.93,41.27242586]
[1741691887369,4.78485592,124.01,123.96,8.0673]
[1741691887565,4.78485592,124.0,123.97,30.66]
[1741691887771,10.55242586,124.02,123.97,30.66]
[1741691888070,4.78378545,124.01,123.97,92.66]
[1741691888263,4.78378545,124.01,123.98,0.06052565]
[1741691888264,8.0663,123.99,123.98,0.06052565]
[1741691889166,0.06022221,124.01,123.98,0.06052565]
[1741691889372,8.0655,124.0,123.98,0.06052565]
[1741691889871,0.06022221,124.01,123.98,0.06052565]
[1741691890073,0.06022221,124.01,123.98,8.12672565]
[1741691890461,8.12472221,124.01,123.98,8.12662565]
[1741691891165,0.06022221,124.01,123.98,8.12662565]
[1741691891873,0.06022221,124.01,124.0,8.0651]
[1741691892067,0.06022221,124.01,124.0,30.6]
[1741691892472,8.12472221,124.01,124.0,30.6]
[1741691893070,0.06022221,124.01,124.0,30.6]
[1741691893671,8.12472221,124.01,124.0,30.6]
[1741691894065,0.06022221,124.01,124.0,30.6]
[1741691900176,0.06022221,124.01,124.0,38.6651]
[1741691900478,0.06022221,124.01,124.0,45.13690622]
[1741691900976,194.0,124.07,124.03,8.063]
[1741691901277,8.0619,124.05,124.04,30.44]
[1741691901472,8.0619,124.05,123.97,68.47180622]
[1741691901473,6.47180622,124.05,124.03,30.44]
[1741691901775,6.47180622,124.04,124.01,30.44]
[1741691901979,8.0635,124.03,124.0,30.48]
[1741691902178,8.0635,124.03,124.01,0.05709956]
[1741691902382,8.11863114,124.03,124.01,0.05709956]
[1741691902571,0.05513114,124.03,124.01,0.05709956]
[1741691903280,8.0638,124.02,124.01,0.05709956]
[1741691904879,14.53480949,124.02,124.01,0.05709956]
[1741691905178,8.0638,124.02,124.01,0.05709956]
[1741691906381,0.05513114,124.03,124.01,30.45709956]
[1741691906778,0.05513114,124.03,124.01,38.52119956]
[1741691907187,0.05513114,124.03,124.01,30.45709956]
[1741691907879,8.11873114,124.03,124.01,30.45709956]
[1741691908078,0.05513114,124.03,124.01,30.45709956]
[1741691908484,8.11853114,124.03,124.01,30.45709956]
[1741691909086,8.0638,124.02,124.01,30.45709956]
[1741691909385,0.05513114,124.03,124.01,0.05709956]
[1741691909879,8.11853114,124.03,124.01,0.05709956]
[1741691910682,0.05513114,124.03,124.01,0.05709956]
[1741691912585,8.0638,124.02,124.01,0.05709956]
[1741691914791,0.05513114,124.03,124.01,0.05709956]
[1741691914985,0.05513114,124.03,124.01,8.12109956]
[1741691915882,8.11863114,124.03,124.01,0.05709956]
[1741691916078,0.05513114,124.03,124.01,0.05709956]
[1741691916588,0.05513114,124.03,124.01,8.12119956]
[1741691916884,0.05513114,124.03,124.01,30.43709956]
[1741691918185,8.11843114,124.03,124.01,30.43709956]
[1741691918585,0.05513114,124.03,124.01,30.43709956]
[1741691918889,8.0638,124.02,124.01,30.43709956]
[1741691919192,8.0638,124.02,124.01,0.05709956]
[1741691920388,0.05513114,124.03,124.01,0.05709956]
[1741691920687,8.11853114,124.03,124.01,0.05709956]
[1741691921793,0.05513114,124.03,124.01,8.12149956]
[1741691922191,0.05513114,124.03,124.01,0.05709956]
[1741691922392,8.11833114,124.03,124.01,0.05709956]
[1741691923587,0.05513114,124.03,124.01,8.12139956]
[1741691923787,0.05513114,124.03,124.01,0.05709956]
[1741691924194,8.11873114,124.03,124.01,0.05709956]
[1741691926296,0.05513114,124.03,124.01,0.05709956]
[1741691926795,8.11843114,124.03,124.01,0.05709956]
[1741691927294,0.05513114,124.03,124.01,0.05709956]
[1741691927495,0.05513114,124.03,124.01,8.12149956]
[1741691927695,0.05513114,124.03,124.01,0.05709956]
[1741691927894,8.11863114,124.03,124.01,0.05709956]
[1741691929692,0.05513114,124.03,124.01,8.12119956]
[1741691929997,0.05513114,124.03,124.01,0.05709956]
[1741691931396,8.11863114,124.03,124.01,0.05709956]
[1741691931596,0.05513114,124.03,124.01,0.05709956]
[1741691931992,8.0638,124.02,124.01,0.05709956]
[1741691932198,12.87513146,124.02,124.01,0.05709956]
[1741691932698,12.87513146,124.02,123.93,17.0210664]
[1741691932699,6.47043846,124.01,123.95,30.2]
[1741691932890,4.81133146,124.0,123.95,30.2]
[1741691933086,8.0668,123.98,123.95,30.2]
[1741691933492,8.0668,123.98,123.95,30.18]
[1741691933798,0.05791665,123.98,123.96,6.47043846]
[1741691935394,0.05791665,123.98,123.97,8.0671]
[1741691935602,0.05791665,123.98,123.97,70.0671]
[1741691938302,0.05791665,123.98,123.97,62.0]
[1741691939599,0.05791665,123.98,123.97,70.0671]
[1741691944305,6.47043846,124.03,124.0,8.0648]
[1741691944505,6.47043846,124.03,123.99,36.55043846]
[1741691944506,4.81375365,124.02,123.99,36.55043846]
[1741691944698,6.47043846,124.03,123.99,36.55043846]
[1741691944898,4.81338801,124.02,124.0,8.0651]
[1741691945098,14.53413846,124.03,124.0,8.0651]
[1741691945403,4.81364284,124.02,124.0,8.0651]
[1741691945602,14.59438192,124.03,124.0,8.11843836]
[1741691945998,8.0638,124.02,124.0,8.11843836]
[1741691947100,14.59428192,124.03,124.0,8.11843836]
[1741691947301,0.06024346,124.03,124.01,8.0641]
[1741691947500,0.06024346,124.03,124.0,0.05333836]
[1741691947911,0.06024346,124.03,124.0,8.11813836]
[1741691948302,8.12364346,124.03,124.0,8.11813836]
[1741691948809,8.12364346,124.03,124.0,0.05333836]
[1741691949210,8.0639,124.02,124.0,0.05333836]
[1741691949407,0.06024346,124.03,124.0,0.05333836]
[1741691949610,0.06024346,124.03,124.0,8.11813836]
[1741691950810,8.12374346,124.03,124.0,8.11813836]
[1741691951214,8.0638,124.02,124.0,0.05333836]
[1741691951414,0.06024346,124.03,124.0,0.05333836]
[1741691951602,4.8116679,124.02,124.0,0.05333836]
[1741691951808,6.53068192,124.03,124.0,0.05333836]
[1741691952010,4.81044412,124.02,124.0,0.05333836]
[1741691952209,19.34538258,124.01,124.0,0.05333836]
[1741691952718,14.53493846,124.01,124.0,0.05333836]
[1741691953011,19.34062798,124.01,124.0,0.05333836]
[1741691953614,4.80568952,124.01,124.0,0.05333836]
[1741691954216,12.87018952,124.01,124.0,0.05333836]
[1741691954514,8.0645,124.01,124.0,0.05333836]
[1741691954811,12.87098099,124.01,124.0,0.05333836]
[1741691955406,4.80648099,124.01,124.0,0.05333836]
[1741691956105,12.87098099,124.01,124.0,0.05333836]
[1741691956510,12.87117791,124.01,124.0,0.05333836]
[1741691957911,4.80667791,124.01,124.0,0.05333836]
[1741691958112,0.06024346,124.03,124.0,0.05333836]
[1741691958318,0.06024346,124.03,124.0,30.07333836]
[1741691959114,4.80478799,124.02,124.0,30.07333836]
[1741691959319,0.06024346,124.03,124.0,30.07333836]
[1741691959518,8.0645,124.01,124.0,30.07333836]
[1741691959716,0.06024346,124.03,124.0,30.07333836]
[1741691959917,4.8055787,124.02,124.0,30.07333836]
[1741691960115,8.0641,124.02,124.0,30.07333836]
[1741691962316,0.06024346,124.03,124.01,8.0644]
[1741691962814,8.12344346,124.03,124.0,44.60867682]
[1741691963719,0.06024346,124.03,124.01,8.0641]
[1741691964119,8.12344346,124.03,124.0,44.60837682]
[1741691964719,0.06024346,124.03,124.01,8.0642]
[1741691965518,0.06024346,124.03,124.0,36.54377682]
[1741691965718,0.06024346,124.03,124.01,8.0645]
[1741691966420,0.06024346,124.03,124.02,8.0638]
[1741691967026,0.06024346,124.03,124.02,14.53423846]
[1741691973228,0.06024346,124.03,124.02,76.53423846]
[1741691975324,6.6811,124.11,124.02,78.8187325]
[1741691975526,4.80239124,124.1,124.09,6.47043846]
[1741691975724,4.80239124,124.1,124.08,44.67003846]
[1741691975930,202.0575,124.12,124.08,44.67003846]
[1741691976229,4.80270744,124.11,124.08,44.67003846]
[1741691976533,0.05246928,124.11,124.09,0.05112969]
[1741691980235,8.11056928,124.11,124.09,0.05112969]
[1741691982132,0.05246928,124.11,124.09,0.05112969]
[1741691982338,14.52903846,124.1,124.09,0.05112969]
[1741691982633,13.21193846,124.1,124.06,30.16]
[1741691982829,8.0604,124.08,124.06,30.16]
[1741691983036,6.47043846,124.09,124.06,30.16]
[1741691983233,8.0616,124.06,124.03,14.53323846]
[1741691983427,6.47043846,124.07,124.03,30.14]
[1741691983651,0.05782641,124.06,124.03,30.20011773]
[1741691983834,0.05782641,124.06,124.04,8.0622]
[1741691984840,0.05782641,124.06,124.03,38.26301773]
[1741691985336,8.11932641,124.06,124.03,38.26301773]
[1741691986242,8.11932641,124.06,124.04,8.0624]
[1741691986642,0.05782641,124.06,124.04,8.0624]
[1741691986941,0.05782641,124.06,124.03,44.73335619]
[1741691987143,8.11932641,124.06,124.03,36.67055619]
[1741691987537,8.11932641,124.06,124.04,8.0625]
[1741691987837,8.11932641,124.06,124.03,36.67055619]
[1741691988042,8.11932641,124.06,124.03,44.73345619]
[1741691988644,8.0625,124.04,124.03,30.20011773]
[1741691989039,0.05782641,124.06,124.03,30.20011773]
[1741691989850,8.0622,124.05,124.03,30.20011773]
[1741691990247,8.0625,124.04,124.03,30.20011773]
[1741691990448,8.0625,124.04,124.03,30.16011773]
[1741691991649,8.0625,124.04,124.03,0.06011773]
[1741691994145,6.52826487,124.06,124.03,0.06011773]
[1741691994749,0.05782641,124.06,124.04,30.16]
[1741691995155,8.11922641,124.06,124.04,30.16]
[1741691995453,0.05782641,124.06,124.04,30.16]
[1741691995849,8.11922641,124.06,124.04,30.16]
[1741691996251,0.05782641,124.06,124.04,30.16]
[1741691996450,8.11932641,124.06,124.04,30.16]
[1741691996751,0.05782641,124.06,124.04,30.16]
[1741691996954,8.11912641,124.06,124.04,30.16]
[1741691997551,0.05782641,124.06,124.05,8.0619]
[1741691997749,0.05782641,124.06,124.05,14.53233846]
[1741691998154,0.05782641,124.06,124.05,6.47043846]
[1741691998354,0.05782641,124.06,124.04,44.69263846]
[1741691998951,0.05782641,124.06,124.04,30.16]
[1741691999350,8.0625,124.04,124.03,0.06011773]
[1741692000554,0.05782641,124.06,124.03,0.06011773]
[1741692000756,0.05782641,124.06,124.04,14.53263846]
[1741692000955,0.05782641,124.06,124.05,30.18]
[1741692001252,0.05782641,124.06,124.05,36.65043846]
[1741692001457,0.05782641,124.06,124.05,44.71233846]
[1741692002753,194.0,124.12,124.05,36.65043846]
[1741692003063,245.15680555,124.16,124.11,6.47043846]
[1741692003254,245.15680555,124.16,124.12,36.61043846]
[1741692003255,12.86136309,124.15,124.12,36.61043846]